fUST/lending_fUST_20260110
["ID","MTS","AMOUNT","RATE_DAILY","PERIOD"]
[401174735,1768017038554,-152.0,0.0003,7]
[401174736,1768017038564,-152.0,0.0003,7]
[401174737,1768017038576,-152.0,0.0003,7]
[401174738,1768017038586,-152.0,0.0003,7]
[401174739,1768017038596,-152.0,0.0003,7]
[401174740,1768017038605,-152.0,0.0003,7]
[401174741,1768017038616,-152.0,0.0003,7]
[401174742,1768017038626,-152.0,0.0003,7]
[401174743,1768017038635,-152.0,0.0003,7]
[401174744,1768017038645,-152.0,0.0003,7]
[401174745,1768017038654,-152.0,0.0003,7]
[401174746,1768017038664,-152.0,0.0003,7]
[401174747,1768017038673,-152.0,0.0003,7]
[401174748,1768017038683,-152.0,0.0003,7]
[401174749,1768017038693,-152.0,0.0003,7]
[401174750,1768017038705,-152.0,0.0003,7]
[401174751,1768017038715,-262.14192212,0.0003,7]
[401174752,1768017038725,-152.0,0.0003,7]
[401174753,1768017038735,-152.0,0.0003,7]
[401174754,1768017038746,-152.0,0.0003,7]
[401174755,1768017038759,-2198.29278691,0.0003112,30]
[401174756,1768017038788,-152.0,0.0003,7]
[401174757,1768017038798,-1639.70721309,0.0003112,30]
[401174758,1768017038808,-815.0,0.0003112,30]
[401174759,1768017038818,-156.5,0.0003145,30]
[401174760,1768017038828,-160.85,0.00031905,2]
[401174761,1768017038838,-500.0,0.00032798,2]
[401174762,1768017038848,-500.0,0.00032798,2]
[401174763,1768017038858,-500.0,0.00032798,2]
[401174764,1768017038870,-294.67095884,0.00032798,2]
[401174765,1768017038879,-500.0,0.00032798,2]
[401174766,1768017038890,-500.0,0.00032798,2]
[401174767,1768017038899,-500.0,0.00032798,2]
[401174768,1768017038910,-500.0,0.00032798,2]
[401174769,1768017038920,-500.0,0.00032798,2]
[401174770,1768017038930,-500.0,0.00032798,2]
[401174771,1768017038941,-500.0,0.00032798,2]
[401174772,1768017038951,-500.0,0.00032798,2]
[401174773,1768017038962,-500.0,0.00032798,2]
[401174774,1768017038972,-500.0,0.00032798,2]
[401174775,1768017038983,-500.0,0.00032798,2]
[401174776,1768017038994,-500.0,0.00032798,2]
[401174777,1768017039006,-500.0,0.00032798,2]
[401174778,1768017039016,-500.0,0.00032798,2]
[401174779,1768017039027,-500.0,0.00032798,2]
[401174780,1768017039037,-500.0,0.00032798,2]
[401174781,1768017039047,-441.89449351,0.00032798,2]
[401174782,1768017039058,-500.0,0.00032798,2]
[401174783,1768017039068,-500.0,0.00032798,2]
[401174784,1768017039078,-178.0,0.00032799,2]
[401174785,1768017039088,-417.0,0.00032799,2]
[401174786,1768017039098,-1130.0,0.00033,2]
[401174787,1768017039107,-2002.06,0.00033,2]
[401174788,1768017039119,-334.22702668,0.000332,117]
[401174789,1768017039129,-334.22702668,0.000332,117]
[401174790,1768017039138,-334.22702668,0.000332,117]
[401174791,1768017039148,-1333.2471,0.0003322,30]
[401174792,1768017039158,-1009.03,0.000338,50]
[401174793,1768017039168,-193.02,0.00034032,2]
[401174794,1768017039178,-5000.0,0.00034292,3]
[401174795,1768017039187,-168.0,0.00034292,2]
[401174796,1768017039198,-235.81,0.00034336,10]
[401174797,1768017039208,-501.5,0.00034337,3]
[401174798,1768017039218,-250.75,0.00034337,3]
[401174799,1768017039228,-65451.10945152,0.00034346,10]
[401174800,1768017039241,-3730.39948757,0.00034346,10]
[401175151,1768017044138,-152.0,0.0003,7]
[401175153,1768017044149,-240.0,0.0003,7]
[401175155,1768017044159,-3903.0,0.00034346,30]
[401175158,1768017044169,-828.0,0.00034346,30]
[401175160,1768017044179,-18566.36246385,0.00034346,10]
[401175334,1768017046121,-500.0,0.00032798,2]
[401175336,1768017046131,-500.0,0.00033799,7]
[401175338,1768017046142,-759.0,0.00034346,30]
[401175340,1768017046152,-3578.0,0.00034346,30]
[401175342,1768017046163,-26669.84988492,0.00034346,10]
[401175775,1768018232239,-165.99,0.00026867,2]
[401175778,1768018232250,-193.66,0.000279,2]
[401175780,1768018232260,-102.578,0.00028933,2]
[401175797,1768018238342,-118.752,0.00028933,2]
[401175799,1768018238353,-248.99,0.00029967,2]
[401175801,1768018238363,-151.0,0.0003,14]
[401175803,1768018238373,-178.0,0.00030232,2]
[401175805,1768018238383,-908.6748532,0.00030254,30]
[401175807,1768018238394,-151.0,0.00030814,14]
[401175808,1768018238405,-276.66,0.00031,2]
[401175810,1768018238415,-3592.0,0.0003145,30]
[401175811,1768018238425,-762.0,0.0003145,30]
[401175812,1768018238435,-151.0,0.00031629,14]
[401175814,1768018238446,-1600.0,0.00032441,3]
[401175816,1768018238456,-246.0,0.00032442,3]
[401175817,1768018238465,-400.0,0.00032442,3]
[401175819,1768018238475,-300.0,0.00032442,3]
[401175821,1768018238485,-400.0,0.00032442,2]
[401175823,1768018238495,-151.0,0.00032443,14]
[401175825,1768018238505,-836.59015411,0.00032798,2]
[401175826,1768018238516,-157.822,0.00032999,34]
[401175827,1768018238526,-242.84,0.00033157,14]
[401175828,1768018238536,-500.0,0.00033196,2]
[401175829,1768018238549,-1425.83,0.00033222,3]
[401175830,1768018238561,-712.92,0.00033222,3]
[401175831,1768018238583,-500.0,0.00033231,7]
[401175832,1768018238608,-214.93929908,0.00033231,7]
[401175833,1768018238629,-500.0,0.00033231,7]
[401175834,1768018238643,-279.9107248,0.00033231,7]
[401175835,1768018238655,-500.0,0.00033231,7]
[401175836,1768018238669,-500.0,0.00033231,7]
[401175837,1768018238681,-502.05327324,0.00033231,7]
[401175838,1768018238691,-500.0,0.00033231,7]
[401175839,1768018238702,-500.0,0.00033231,7]
[401175840,1768018238711,-646.09859962,0.00033231,7]
[401175841,1768018238721,-500.0,0.00033231,7]
[401175842,1768018238732,-424.28257268,0.00033231,7]
[401175843,1768018238745,-75.71742732,0.00033231,7]
[401175844,1768018238756,-500.0,0.00033231,7]
[401175845,1768018238767,-215.76605483,0.00033231,7]
[401175846,1768018238777,-500.0,0.00033231,7]
[401175847,1768018238788,-582.19567875,0.00033231,7]
[401175848,1768018238803,-178.0,0.00033232,2]
[401175849,1768018238819,-1.30142612,0.00033232,10]
[401175850,1768018238833,-42314.74354363,0.00033232,10]
[401175851,1768018238847,-6298.74026498,0.00033232,10]
[401175852,1768018238861,-364.66575202,0.00033232,10]
[401175853,1768018238876,-580.52519946,0.00033232,10]
[401175854,1768018238890,-2514.17811519,0.00033232,10]
[401175855,1768018238904,-8091.96912502,0.00033232,10]
[401175856,1768018238919,-500.0,0.00033232,10]
[401176364,1768018246267,-0.81720308,0.00033222,10]
[401176365,1768018246289,-195.69279692,0.00033222,10]
[401176366,1768018246299,-1816.30720308,0.00033232,10]
[401176376,1768018842143,155.0,0.0001,2]
[401176394,1768019432487,-163.75,0.0002999,10]
[401176395,1768019432497,-300.0,0.00029999,2]
[401176396,1768019432506,-300.0,0.00029999,2]
[401176397,1768019432515,-300.0,0.00029999,2]
[401176399,1768019432524,-89.21700882,0.00029999,2]
[401176427,1768019438625,-818.8,0.0002999,10]
[401176428,1768019438635,-1110.78299118,0.00029999,2]
[401176429,1768019438644,-500.0,0.00029999,2]
[401176430,1768019438654,-286.91063097,0.00029999,2]
[401176431,1768019438664,-251.12695228,0.00029999,2]
[401176459,1768019440792,-192.06744403,0.00029999,2]
[401176462,1768019440815,-495.39318694,0.00029999,2]
[401176465,1768019440826,-731.90020283,0.0003,30]
[401176467,1768019440839,-1806.18249021,0.0003,30]
[401176875,1768019445359,-5360.43538433,0.0003,30]
[401177537,1768019575375,170.0,0.00030137,120]
[401177567,1768020631632,-300.0,0.00018999,2]
[401177569,1768020631647,-101.15789213,0.00019,2]
[401177594,1768020637757,-4898.84210787,0.00019,2]
[401177596,1768020637767,-10000.0,0.00019,2]
[401177598,1768020637778,-500.0,0.00020999,2]
[401177600,1768020637787,-500.0,0.00020999,2]
[401177602,1768020637797,-12403.96524794,0.00021,2]
[401177603,1768020637809,-2596.03475206,0.00021,2]
[401177604,1768020637818,-500.0,0.00022999,2]
[401177606,1768020637828,-500.0,0.00022999,2]
[401177608,1768020637838,-2469.60231881,0.00023,2]
[401177610,1768020637850,-1712.825972,0.00023,2]
[401177612,1768020637861,-1653.66874956,0.00023,2]
[401177614,1768020637872,-452.08800627,0.00023,2]
[401177616,1768020637883,-2593.81310178,0.00023,2]
[401177618,1768020637895,-558.0997,0.00023,2]
[401177620,1768020637908,-559.90215158,0.00023,2]
[401177621,1768020637918,-407.82236458,0.00025,2]
[401177622,1768020637930,-2668.98,0.00025,2]
[401178189,1768020645819,-4809.47073194,0.00025,2]
[401178192,1768020645836,-547.85405501,0.00025,2]
[401178586,1768020668680,167.97556729,0.0002775,120]
[401178587,1768020914658,4071.77,0.00030137,120]
[401178597,1768021202637,1131.17,5e-05,2]
[401178598,1768021203059,1131.17,5.1e-05,2]
[401178599,1768021203410,1131.17,5.2e-05,2]
[401178600,1768021203708,1131.17,5.2e-05,2]
[401178601,1768021204011,1131.17,5.3e-05,2]
[401178602,1768021204351,1131.17,5.4e-05,2]
[401178603,1768021204629,1131.17,5.5e-05,2]
[401178604,1768021204922,1131.17,5.6e-05,2]
[401178605,1768021205228,1131.17,5.7e-05,2]
[401178606,1768021205530,1131.17,5.7e-05,2]
[401178607,1768021205901,1131.17,5.8e-05,2]
[401178608,1768021206221,1131.17,5.9e-05,2]
[401178609,1768021206520,1131.17,6e-05,2]
[401178610,1768021206799,1131.17,6.1e-05,2]
[401178611,1768021207131,1131.17,6.2e-05,2]
[401178612,1768021207423,1131.17,6.2e-05,2]
[401178613,1768021207712,1131.17,6.3e-05,2]
[401178614,1768021208067,1131.17,6.4e-05,2]
[401178615,1768021208466,1131.17,6.5e-05,2]
[401178616,1768021208746,1131.17,6.6e-05,2]
[401178617,1768021209026,1131.17,6.6e-05,2]
[401178618,1768021209306,1090.43,6.7e-05,2]
[401178619,1768021209332,40.74,6.7e-05,2]
[401178620,1768021209717,1131.17,6.8e-05,2]
[401178621,1768021209991,1131.17,6.9e-05,2]
[401178622,1768021210307,1131.17,7e-05,2]
[401178623,1768021210621,1131.17,7.1e-05,2]
[401178624,1768021210908,1131.17,7.1e-05,2]
[401178625,1768021211226,1131.17,7.2e-05,2]
[401178626,1768021211522,1131.17,7.3e-05,2]
[401178627,1768021211819,1131.17,7.4e-05,2]
[401178628,1768021212153,1131.17,7.5e-05,2]
[401178629,1768021212498,1131.17,7.6e-05,2]
[401178630,1768021212813,1131.17,7.6e-05,2]
[401178631,1768021213822,1131.17,7.7e-05,2]
[401178632,1768021214223,1131.17,7.8e-05,2]
[401178633,1768021214525,1131.17,7.9e-05,2]
[401178634,1768021214819,1131.17,8e-05,2]
[401178635,1768021215105,1131.17,8e-05,2]
[401178636,1768021215428,1131.17,8.1e-05,2]
[401178637,1768021215728,1131.17,8.2e-05,2]
[401178638,1768021216027,1131.17,8.3e-05,2]
[401178639,1768021216352,1131.17,8.4e-05,2]
[401178640,1768021216636,1131.17,8.5e-05,2]
[401178641,1768021216970,1131.17,8.5e-05,2]
[401178642,1768021217370,73.52,8.6e-05,2]
[401178643,1768021217398,1057.65,8.6e-05,2]
[401178644,1768021217668,1131.17,8.7e-05,2]
[401178645,1768021217949,1131.17,8.8e-05,2]
[401178646,1768021218244,1131.17,8.9e-05,2]
[401178647,1768021218574,1131.17,9e-05,2]
[401178648,1768021218869,1131.17,9e-05,2]
[401178671,1768021831790,-3343.01425582,0.0002411,2]
[401178674,1768021831802,-300.0,0.00024998,2]
[401178676,1768021831812,-300.0,0.00024998,2]
[401178678,1768021831821,-300.0,0.00024998,2]
[401178680,1768021831831,-300.0,0.00024998,2]
[401178682,1768021831840,-1200.0,0.00024998,2]
[401178684,1768021831850,-6190.10771653,0.00025,2]
[401178922,1768021840119,-375.76513194,0.00025,2]
[401178925,1768021840130,-8060.56206756,0.00026362,2]
[401179366,1768021845846,-21022.02614526,0.00026362,2]
[401179367,1768021845856,-322.24476796,0.00026362,2]
[401179368,1768021845866,-161.9633997,0.00026362,2]
[401179369,1768021845876,-500.0,0.00026573,30]
[401179370,1768021845886,-555.91274238,0.00026713,30]
[401179371,1768021845896,-177.0,0.00026999,2]
[401179372,1768021845906,-265.79,0.00027,14]
[401179373,1768021845916,-420.0,0.00027081,2]
[401179374,1768021845925,-322.24476796,0.00027472,56]
[401179375,1768021845934,-170.68633163,0.00027999,2]
[401179377,1768021845944,-11673.0,0.00028,2]
[401179379,1768021845954,-161.9633997,0.00028582,110]
[401179381,1768021845964,-322.24476796,0.00028582,110]
[401179383,1768021845974,-204.0,0.00028999,2]
[401179385,1768021845984,-587.0,0.00029338,2]
[401179387,1768021845993,-1713.91,0.00029989,3]
[401179389,1768021846004,-781.33674122,0.00029999,2]
[401179391,1768021846014,-3125.34696487,0.00029999,2]
[401179393,1768021846023,-36753.48742212,0.00029999,10]
[401179395,1768021846035,-19785.50329511,0.00029999,10]
[401179397,1768021846047,-725.61998,0.00029999,10]
[401179470,1768021846763,-14059.82753586,0.00029999,10]
[401179788,1768022811084,253014.89452206,0.00030136,120]
[401179794,1768022996107,1017.167,0.00030136,120]
[401179827,1768023032022,-1836.60095171,0.00026881,4]
[401179828,1768023032033,-177.0,0.0002789,2]
[401179829,1768023032043,-881.0,0.0002789,2]
[401179830,1768023032053,-204.0,0.0002989,2]
[401179831,1768023032063,-300.0,0.00029999,2]
[401179832,1768023032072,-67364.13768914,0.0003,30]
[401179833,1768023032084,-956.62484928,0.0003,30]
[401179834,1768023032096,-597.21929559,0.0003,30]
[401179838,1768023038076,-4854.02705653,0.0003,30]
[401179839,1768023038133,-889.78,0.0003,30]
[401179840,1768023038191,-17476.63605766,0.0003,30]
[401179841,1768023038202,-151.0,0.0003,14]
[401179842,1768023038213,-730.0,0.00030595,30]
[401179843,1768023038223,-3442.0,0.00030595,30]
[401179844,1768023038233,-164.75,0.000314,2]
[401179845,1768023038243,-387.87,0.000314,14]
[401179846,1768023038253,-151.0,0.00031449,14]
[401179847,1768023038263,-24550.03732534,0.0003189,2]
[401179848,1768023038272,-18935.96121961,0.000319,2]
[401179849,1768023038282,-200.79198491,0.00032,2]
[401179850,1768023038292,-165.35,0.00032227,3]
[401179851,1768023038302,-496.1,0.00032227,3]
[401179852,1768023038313,-420.0,0.00032332,3]
[401179853,1768023038323,-150.367163,0.00032511,17]
[401179854,1768023038336,-2202.18363046,0.00032548,2]
[401179855,1768023038346,-150.34339584,0.00032602,60]
[401179856,1768023038356,-153.94242131,0.00032602,60]
[401179857,1768023038366,-500.0,0.00032602,2]
[401179858,1768023038376,-500.0,0.00032602,2]
[401179859,1768023038386,-595.93750736,0.00032602,2]
[401179860,1768023038396,-151.244591,0.00032603,2]
[401179861,1768023038407,-500.0,0.00032603,10]
[401179862,1768023038418,-151.40833743,0.00032603,10]
[401179863,1768023038429,-500.0,0.00032603,2]
[401179864,1768023038439,-85595.26354797,0.00032603,10]
[401180255,1768023045506,-177.0,0.0002789,2]
[401180256,1768023045518,-232.44315503,0.0002989,2]
[401180257,1768023045529,-196.36525869,0.00032602,30]
[401180258,1768023046014,-350.71621425,0.00032602,30]
[401180260,1768023673753,155.0,0.0001,2]
[401180261,1768023767674,270.0,0.00013,2]
[401180262,1768024152858,4743.0,0.00030136,120]
[401180283,1768024232189,-151.0,0.0003,14]
[401180284,1768024232199,-314.89833563,0.00031703,30]
[401180285,1768024232211,-2983.10166437,0.00031703,30]
[401180286,1768024232221,-35.35212161,0.00031703,30]
[401180293,1768024238312,-664.64787839,0.00031703,30]
[401180294,1768024238323,-643.0,0.00031703,30]
[401180295,1768024238332,-3024.0,0.00031703,30]
[401180296,1768024238342,-151.0,0.0003288,2]
[401180297,1768024238353,-250.0,0.0003288,2]
[401180298,1768024238363,-250.0,0.0003288,2]
[401180299,1768024238373,-250.0,0.0003288,2]
[401180300,1768024238383,-250.0,0.0003288,2]
[401180301,1768024238397,-250.0,0.0003288,2]
[401180302,1768024238406,-250.0,0.0003288,2]
[401180303,1768024238416,-224.1717765,0.0003289,2]
[401180304,1768024238426,-400.0,0.00032898,3]
[401180305,1768024238436,-999.0,0.00032899,120]
[401180306,1768024238446,-2394.18034511,0.000329,2]
[401180307,1768024238458,-2088.03168191,0.000329,2]
[401180308,1768024238469,-2084.42943746,0.000329,2]
[401180334,1768024240553,-619.0,0.0003288,30]
[401180336,1768024240563,-2909.0,0.0003288,30]
[401180338,1768024240572,-79181.83425228,0.000329,2]
[401180834,1768024245780,-13527.31808782,0.000329,2]
[401180905,1768024246494,-16012.84108208,0.000329,2]
[401180908,1768024246511,-771.99000221,0.000329,2]
[401180911,1768024246531,-913.73717017,0.000329,2]
[401180913,1768024246543,-62680.21847959,0.000329,2]
[401181183,1768025432297,-152.56452546,0.0003,14]
[401181184,1768025432307,-212.86563989,0.00031424,2]
[401181197,1768025438393,-937.73,0.00031424,2]
[401181198,1768025438406,-2274.30747818,0.00031424,2]
[401181199,1768025438450,-158.01980883,0.00031424,2]
[401181200,1768025438461,-2914.0,0.00031716,30]
[401181201,1768025438472,-622.0,0.00031716,30]
[401181202,1768025438482,-482.0,0.00031716,30]
[401181203,1768025438492,-400.0,0.00032775,3]
[401181204,1768025438504,-8808.73452184,0.00032776,2]
[401181205,1768025438515,-447.16331982,0.0003279,3]
[401181206,1768025438531,-1464.86668018,0.0003279,3]
[401181207,1768025438542,-956.02,0.0003279,3]
[401181209,1768025438552,-478.01,0.0003279,3]
[401181210,1768025438563,-239.0,0.0003279,3]
[401181211,1768025438573,-717.04,0.0003279,3]
[401181212,1768025438583,-617.15625516,0.00032799,2]
[401181213,1768025438594,-500.0,0.00032799,2]
[401181214,1768025438604,-215.76605483,0.00032799,2]
[401181215,1768025438614,-500.0,0.00032799,2]
[401181216,1768025438624,-500.0,0.00032799,2]
[401181217,1768025438635,-423.97611087,0.00032799,2]
[401181218,1768025438646,-1000.0,0.000328,30]
[401181219,1768025438656,-58490.52310399,0.000328,2]
[401181768,1768025445835,-310.63394214,0.00032775,30]
[401181819,1768025446345,-311.36605786,0.00032775,30]
[401181821,1768025446356,-2464.00494214,0.00032775,30]
[401181827,1768025446403,-206.99505786,0.00032775,30]
[401181829,1768025446414,-283.61394214,0.000328,2]
[401182290,1768025866366,215.2,0.00010057,2]
[401182291,1768025866846,430.41,0.00010535,2]
[401182292,1768025867322,645.61,0.00011014,2]
[401182293,1768025867799,860.82,0.00011493,2]
[401182294,1768025868340,1076.02,0.00011972,2]
[401182295,1768025868729,1291.22,0.00012451,2]
[401182296,1768025869221,1506.43,0.0001293,2]
[401182297,1768025946533,153.48,6.651e-05,2]
[401182298,1768025947030,306.96,6.968e-05,2]
[401182299,1768025947591,460.44,7.284e-05,2]
[401182300,1768025948001,613.93,7.601e-05,2]
[401182301,1768025948507,767.41,7.918e-05,2]
[401182302,1768025949071,920.89,8.235e-05,2]
[401182303,1768025949571,1074.37,8.551e-05,2]
[401182304,1768025950063,1227.85,8.868e-05,2]
[401182305,1768025950527,1381.33,9.185e-05,2]
[401182306,1768025951019,1534.82,9.501e-05,2]
[401182307,1768026025539,1500.53617,0.00010959,2]
[401182308,1768026025899,198.58,6.989e-05,2]
[401182309,1768026026518,297.86,7.307e-05,2]
[401182310,1768026026993,397.15,7.624e-05,2]
[401182311,1768026027720,496.44,7.942e-05,2]
[401182312,1768026028234,503.74383,8.26e-05,2]
[401182313,1768026028263,91.98617,8.26e-05,2]
[401182314,1768026028743,695.01,8.578e-05,2]
[401182315,1768026029206,794.3,8.895e-05,2]
[401182316,1768026029701,893.59,9.213e-05,2]
[401182317,1768026030194,992.88,9.531e-05,2]
[401182319,1768026104591,155.25,7.893e-05,2]
[401182320,1768026105052,186.3,8.209e-05,2]
[401182321,1768026105542,217.35,8.524e-05,2]
[401182322,1768026106007,248.4,8.84e-05,2]
[401182323,1768026106488,279.45,9.156e-05,2]
[401182324,1768026106964,310.5,9.472e-05,2]
[401182367,1768026632526,-1136.37377904,0.00019639,2]
[401182368,1768026632537,-294.02,0.000273,3]
[401182370,1768026632546,-294.02,0.000277,4]
[401182372,1768026632556,-1000.0,0.000298,40]
[401182374,1768026632566,-300.0,0.00029999,2]
[401182376,1768026632575,-14.13461872,0.0003,2]
[401182377,1768026632587,-974.45538128,0.0003,2]
[401182378,1768026632596,-1001.0,0.0003,2]
[401182379,1768026632606,-294.02,0.000312,7]
[401182380,1768026632616,-1007.0,0.000318,50]
[401182381,1768026632631,-570.0,0.00031837,30]
[401182382,1768026632641,-2681.0,0.00031837,30]
[401182383,1768026632651,-362.0,0.00031837,30]
[401182385,1768026632661,-171.88190942,0.00031913,2]
[401182387,1768026632670,-420.0,0.00032332,3]
[401182389,1768026632680,-1010.76,0.000326,60]
[401182391,1768026632690,-4571.93015933,0.000326,2]
[401182393,1768026632699,-4571.93015933,0.000326,2]
[401182395,1768026632708,-1356.15,0.0003269,3]
[401182397,1768026632717,-678.07,0.0003269,3]
[401182398,1768026632727,-339.04,0.0003269,3]
[401182399,1768026632736,-169.52,0.0003269,3]
[401182400,1768026632746,-508.58,0.0003269,3]
[401182401,1768026632755,-500.0,0.00032699,2]
[401182402,1768026632765,-282.00937861,0.00032699,2]
[401182403,1768026632774,-158.21956788,0.00032699,2]
[401182404,1768026632786,-71654.52837215,0.000327,2]
[401182426,1768026638631,-3092.42823763,0.000327,2]
[401182427,1768026638647,-12879.46498603,0.000327,2]
[401182428,1768026638659,-545.178,0.000327,2]
[401182429,1768026638690,-98541.79635942,0.000327,2]
[401182430,1768026638702,-2732.25612894,0.000327,2]
[401182907,1768026645445,-531.93873568,0.000327,2]
[401182914,1768026645505,-435.015,0.000327,2]
[401183504,1768026651594,154.98,0.00030137,120]
[401183717,1768027303000,383.29,0.00012329,2]
[401183718,1768027313373,319.4,0.00012329,2]
[401183719,1768027323753,266.17,0.00012329,2]
[401183720,1768027334155,221.81,0.00012329,2]
[401183721,1768027344526,184.84,0.00012329,2]
[401183722,1768027355139,154.03,0.00012329,2]
[401183723,1768027365867,770.2,0.00012329,2]
[401183746,1768027831701,-353.18754717,0.00012997,2]
[401183757,1768027837771,-146.81245283,0.00012997,2]
[401183758,1768027837783,-604.0,0.00012997,2]
[401183759,1768027837797,-500.0,0.00013134,2]
[401183760,1768027837810,-155.56396422,0.00013134,2]
[401183761,1768027837821,-152.70332318,0.00013134,2]
[401183762,1768027837832,-150.3969727,0.00013134,2]
[401183763,1768027837843,-152.04476245,0.00013134,2]
[401183764,1768027837855,-187.04157748,0.0001317,2]
[401183765,1768027837868,-1200.0,0.00013268,2]
[401183766,1768027837880,-1000.1400196,0.00013268,2]
[401183767,1768027837892,-300.0,0.00013269,2]
[401183768,1768027837903,-300.0,0.00013269,2]
[401183769,1768027837914,-300.0,0.00013269,2]
[401183770,1768027837925,-300.0,0.00013269,2]
[401183771,1768027837936,-50000.0,0.0001327,2]
[401183772,1768027837946,-500.0,0.0001327,2]
[401183773,1768027837956,-500.0,0.0001327,2]
[401183774,1768027837966,-500.0,0.0001327,2]
[401183775,1768027837976,-500.0,0.0001327,2]
[401183776,1768027837988,-500.0,0.0001327,2]
[401183777,1768027837998,-500.0,0.0001327,2]
[401183778,1768027838008,-500.0,0.0001327,2]
[401183779,1768027838019,-500.0,0.0001327,2]
[401183780,1768027838031,-500.0,0.0001327,2]
[401183781,1768027838042,-500.0,0.0001327,2]
[401183782,1768027838054,-500.0,0.0001327,2]
[401183783,1768027838065,-500.0,0.0001327,2]
[401183784,1768027838077,-500.0,0.0001327,2]
[401183785,1768027838089,-398.86015046,0.0001327,2]
[401183786,1768027838100,-500.0,0.0001327,2]
[401183787,1768027838112,-500.0,0.0001327,2]
[401183788,1768027838124,-500.0,0.0001327,2]
[401183789,1768027838141,-500.0,0.0001327,2]
[401183790,1768027838153,-500.0,0.0001327,2]
[401183791,1768027838166,-500.0,0.0001327,2]
[401183793,1768027838179,-500.0,0.0001327,2]
[401183795,1768027838191,-500.0,0.0001327,2]
[401183796,1768027838204,-500.0,0.0001327,2]
[401183797,1768027838217,-520.42941215,0.0001327,2]
[401183798,1768027838229,-500.0,0.0001327,2]
[401183799,1768027838240,-500.0,0.0001327,2]
[401183800,1768027838251,-500.0,0.0001327,2]
[401183801,1768027838261,-500.0,0.0001327,2]
[401183802,1768027838273,-500.0,0.0001327,2]
[401183803,1768027838284,-500.0,0.0001327,2]
[401183804,1768027838295,-500.0,0.0001327,2]
[401183805,1768027838307,-500.0,0.0001327,2]
[401183806,1768027838319,-500.0,0.0001327,2]
[401183807,1768027838331,-458.66880688,0.0001327,2]
[401183808,1768027838343,-500.0,0.0001327,2]
[401183809,1768027838355,-500.0,0.0001327,2]
[401183810,1768027838368,-500.0,0.0001327,2]
[401183811,1768027838380,-500.0,0.0001327,2]
[401183812,1768027838392,-500.0,0.0001327,2]
[401183813,1768027838405,-500.0,0.0001327,2]
[401183814,1768027838421,-500.0,0.0001327,2]
[401183815,1768027838432,-500.0,0.0001327,2]
[401183816,1768027838443,-500.0,0.0001327,2]
[401183817,1768027838456,-500.0,0.0001327,2]
[401183818,1768027838471,-500.0,0.0001327,2]
[401183819,1768027838484,-500.0,0.0001327,2]
[401183820,1768027838496,-500.0,0.0001327,2]
[401183821,1768027838508,-500.0,0.0001327,2]
[401183822,1768027838520,-500.0,0.0001327,2]
[401183823,1768027838532,-500.0,0.0001327,2]
[401183824,1768027838543,-500.0,0.0001327,2]
[401183825,1768027838554,-500.0,0.0001327,2]
[401183826,1768027838565,-500.0,0.0001327,2]
[401183827,1768027838577,-500.0,0.0001327,2]